bitfinex-derivatives/quotes_BTCF0:USTF0_20241223
["timestamp","ask_amount","ask_price","bid_price","bid_amount"]
[1734989018407,0.054177,94153.0,94149.0,0.34158581]
[1734989018803,0.053177,94151.0,94149.0,0.34158581]
[1734989018996,0.053177,94151.0,94149.0,0.33958581]
[1734989019193,0.053183,94141.0,94137.0,0.1674]
[1734989019393,0.053183,94141.0,94137.0,0.22187312]
[1734989020091,0.053185,94139.0,94137.0,0.05447312]
[1734989020300,0.053185,94139.0,94132.0,0.3608]
[1734989020699,0.053185,94139.0,94137.0,0.001]
[1734989021393,0.053185,94139.0,94132.0,0.001]
[1734989021592,0.053185,94139.0,94132.0,0.05530812]
[1734989022710,0.053185,94139.0,94137.0,0.003]
[1734989023309,0.053185,94139.0,94132.0,0.05730812]
[1734989023509,0.053185,94139.0,94132.0,0.05630812]
[1734989023807,0.054185,94139.0,94132.0,0.05430812]
[1734989024108,0.001,94139.0,94132.0,0.3608]
[1734989024304,0.3608,94156.0,94140.0,0.053183]
[1734989024610,0.053178,94151.0,94140.0,0.053183]
[1734989024808,0.053179,94149.0,94140.0,0.053183]
[1734989025002,0.3608,94156.0,94137.0,0.3608]
[1734989025203,0.3608,94156.0,94148.0,0.053179]
[1734989025507,0.41397,94164.0,94154.0,0.3608]
[1734989025807,0.053171,94163.0,94154.0,0.3608]
[1734989026206,0.053172,94162.0,94154.0,0.3608]
[1734989026405,0.3608,94164.0,94157.0,0.053173]
[1734989026803,0.053171,94163.0,94154.0,0.3608]
[1734989026997,0.006,94156.0,94154.0,0.3608]
[1734989027198,0.006,94156.0,94154.0,0.3618]
[1734989027607,0.053171,94162.0,94154.0,0.3618]
[1734989027806,0.053171,94162.0,94154.0,0.3608]
[1734989028009,0.053171,94162.0,94155.0,0.053175]
[1734989028313,0.3608,94164.0,94155.0,0.053175]
[1734989028504,0.3608,94164.0,94154.0,0.3618]
[1734989028706,0.3608,94180.0,94162.0,0.3608]
[1734989028907,0.3608,94188.0,94174.0,0.3608]
[1734989029114,0.053164,94176.0,94174.0,0.3608]
[1734989029506,0.053172,94162.0,94154.0,0.41703943]
[1734989029706,0.053164,94176.0,94154.0,0.41703943]
[1734989029707,0.053173,94159.0,94154.0,0.41703943]
[1734989030010,0.053172,94161.0,94154.0,0.41603943]
[1734989030217,0.053172,94161.0,94156.0,0.053174]
[1734989031116,0.3608,94180.0,94156.0,0.053174]
[1734989031620,0.053169,94166.0,94156.0,0.053174]
[1734989031815,0.053165,94173.0,94154.0,0.41503943]
[1734989032117,0.053166,94172.0,94162.0,0.413971]
[1734989032712,0.053166,94172.0,94164.0,0.05317]
[1734989033520,0.053166,94172.0,94165.0,0.053169]
[1734989033521,0.056166,94172.0,94165.0,0.053169]
[1734989034217,0.003,94172.0,94167.0,0.053168]
[1734989034618,0.004,94172.0,94167.0,0.053168]
[1734989034819,0.004,94172.0,94171.0,0.3608]
[1734989035215,0.003,94172.0,94171.0,0.3608]
[1734989035412,0.005,94172.0,94171.0,0.2868]
[1734989036423,0.053158,94185.0,94178.0,0.053162]
[1734989036723,0.12694635,94191.0,94172.0,0.1742]
[1734989036918,0.12694635,94191.0,94173.0,0.053165]
[1734989037424,0.12694635,94191.0,94172.0,0.1742]
[1734989037615,0.12694635,94191.0,94174.0,0.053164]
[1734989037616,0.053159,94184.0,94174.0,0.053164]
[1734989037822,0.053159,94184.0,94178.0,0.002]
[1734989038220,0.3608,94188.0,94180.0,0.3608]
[1734989038720,0.053157,94187.0,94180.0,0.3608]
[1734989039422,0.053158,94186.0,94180.0,0.3608]
[1734989040217,0.12694635,94196.0,94180.0,0.3608]
[1734989040424,0.053159,94183.0,94180.0,0.2868]
[1734989041118,0.053157,94188.0,94180.0,0.2868]
[1734989041727,0.3608,94189.0,94180.0,0.2878]
[1734989041925,0.05316,94182.0,94180.0,0.001]
[1734989042629,0.3608,94181.0,94180.0,0.001]
[1734989043732,0.3608,94181.0,94172.0,0.1742]
[1734989044025,0.3608,94181.0,94174.0,0.053164]
[1734989044221,0.053163,94177.0,94174.0,0.053164]
[1734989044622,0.053163,94177.0,94172.0,0.1742]
[1734989045029,0.053165,94174.0,94172.0,0.1742]
[1734989045427,0.1714,94180.0,94171.0,0.05250024]
[1734989045428,0.053166,94172.0,94171.0,0.05250024]
[1734989045625,0.053166,94172.0,94168.0,0.3608]
[1734989045929,0.053167,94169.0,94164.0,0.05317]
[1734989047032,0.053167,94169.0,94165.0,0.053169]
[1734989047233,0.09529128,94172.0,94154.0,0.053175]
[1734989047419,0.3608,94164.0,94154.0,0.053175]
[1734989047620,0.3608,94164.0,94154.0,0.04270522]
[1734989047621,0.053175,94156.0,94154.0,0.04270522]
[1734989047818,0.053176,94155.0,94150.0,0.3608]
[1734989048017,0.053173,94160.0,94155.0,0.053175]
[1734989048421,0.09529128,94158.0,94155.0,0.053175]
[1734989049123,0.053175,94156.0,94154.0,0.005]
[1734989049526,0.3608,94155.0,94154.0,0.002]
[1734989049834,0.527,94155.0,94154.0,0.002]
[1734989050334,0.053176,94153.0,94129.0,0.05319]
[1734989050529,0.053186,94136.0,94132.0,0.2868]
[1734989050732,0.053186,94136.0,94132.0,0.32152937]
[1734989051031,0.053186,94136.0,94134.0,0.053187]
[1734989051440,0.053188,94133.0,94127.0,0.053191]
[1734989051628,0.053188,94133.0,94128.0,0.05319]
[1734989051934,0.12694635,94139.0,94126.0,0.053191]
[1734989051935,0.053188,94132.0,94126.0,0.053191]
[1734989052835,0.05319,94129.0,94125.0,0.19829788]
[1734989053337,0.053191,94127.0,94125.0,0.03399788]
[1734989053529,0.053192,94126.0,94117.0,0.053196]
[1734989053735,0.053193,94124.0,94117.0,0.053196]
[1734989054234,0.09778615,94148.0,94147.0,0.05318]
[1734989054432,0.04567049,94150.0,94149.0,0.053179]
[1734989054634,0.00342994,94150.0,94149.0,0.413979]
[1734989054830,0.02022249,94152.0,94151.0,0.053177]
[1734989055338,1e-08,94152.0,94151.0,0.053177]
[1734989055527,1e-08,94152.0,94149.0,0.339977]
[1734989055837,0.3608,94169.0,94149.0,0.639977]
[1734989055838,0.35347,94169.0,94149.0,0.639977]
[1734989056135,0.34500727,94169.0,94159.0,0.08872857]
[1734989056331,0.3608,94183.0,94171.0,0.053166]
[1734989056332,0.053162,94178.0,94171.0,0.053166]
[1734989056638,0.3608,94183.0,94174.0,0.053164]
[1734989056837,0.053161,94180.0,94174.0,0.053164]
[1734989057037,0.3608,94183.0,94170.0,0.08872857]
[1734989057341,0.053162,94178.0,94172.0,0.053165]
[1734989058731,0.3608,94183.0,94168.0,0.13309153]
[1734989058936,0.053163,94177.0,94168.0,0.053168]
[1734989059345,0.053164,94175.0,94174.0,0.001]
[1734989059941,0.053164,94175.0,94172.0,0.001]
[1734989060527,0.062164,94175.0,94174.0,0.001]
[1734989061129,0.062164,94175.0,94172.0,0.001]
[1734989061941,0.053165,94173.0,94172.0,0.001]
[1734989063143,0.413965,94173.0,94167.0,0.03364826]
[1734989063441,0.413965,94173.0,94149.0,0.053178]
[1734989063628,0.413965,94173.0,94150.0,0.13309153]
[1734989063629,0.3608,94165.0,94150.0,0.13309153]
[1734989063833,0.3608,94165.0,94156.0,0.053174]
[1734989064040,0.1717,94172.0,94156.0,0.053174]
[1734989064242,0.1717,94172.0,94160.0,0.13309153]
[1734989064444,0.05317,94164.0,94160.0,0.13309153]
[1734989064632,0.053171,94163.0,94160.0,0.13309153]
[1734989064834,0.053171,94162.0,94160.0,0.13309153]
[1734989065041,0.053172,94161.0,94156.0,0.053174]
[1734989066441,0.002,94161.0,94158.0,0.053173]
[1734989066642,0.007,94161.0,94158.0,0.053173]
[1734989067546,0.002,94161.0,94160.0,0.3608]
[1734989067745,0.007,94161.0,94160.0,0.3608]
[1734989067948,0.3608,94183.0,94181.0,0.05316]
[1734989068244,0.21082421,94193.0,94182.0,0.3608]
[1734989068433,0.21082421,94193.0,94188.0,0.053156]
[1734989068638,0.3608,94203.0,94188.0,0.053156]
[1734989068639,0.053151,94199.0,94188.0,0.053156]
[1734989068942,0.053151,94198.0,94188.0,0.053156]
[1734989069539,0.053152,94197.0,94188.0,0.053156]
[1734989069748,0.053153,94194.0,94188.0,0.053156]
[1734989070250,0.053153,94194.0,94183.0,0.30369153]
[1734989070251,0.003,94198.0,94191.0,0.053155]
[1734989070432,0.36144,94214.0,94193.0,0.3608]
[1734989070638,0.3608,94214.0,94209.0,0.053144]
[1734989070838,0.25380485,94214.0,94204.0,0.13309153]
[1734989071038,0.25380485,94214.0,94202.0,0.3608]
[1734989071538,0.21714213,94214.0,94211.0,0.053143]
[1734989071941,0.19534974,94214.0,94211.0,0.053143]
[1734989072145,0.053136,94224.0,94211.0,0.053143]
[1734989072547,0.053139,94219.0,94203.0,0.053148]
[1734989072846,0.3608,94220.0,94202.0,0.03835674]
[1734989073143,0.3608,94220.0,94211.0,0.004]
[1734989073337,0.053143,94212.0,94211.0,0.006]
[1734989075248,0.053144,94211.0,94202.0,0.39515674]
[1734989075450,0.053144,94211.0,94202.0,0.3608]
[1734989075750,0.3638,94212.0,94203.0,0.053148]
[1734989075943,0.003,94212.0,94202.0,0.35434623]
[1734989076146,0.003,94212.0,94211.0,0.053144]
[1734989076344,0.053135,94226.0,94212.0,0.053143]
[1734989076542,0.053135,94226.0,94216.0,0.13309153]
[1734989077047,0.053135,94226.0,94219.0,0.3608]
[1734989078647,0.058135,94226.0,94219.0,0.3608]
[1734989079157,0.053135,94226.0,94219.0,0.3608]
[1734989079456,0.060135,94226.0,94219.0,0.3608]
[1734989079651,0.007,94226.0,94219.0,0.3608]
[1734989079950,0.002,94226.0,94219.0,0.3628]
[1734989080156,0.3608,94232.0,94222.0,0.053137]
[1734989080953,0.1659,94236.0,94231.0,0.3608]
[1734989081151,0.1659,94236.0,94219.0,0.39918092]
[1734989081152,0.1659,94236.0,94226.0,0.08864194]
[1734989081354,0.053129,94238.0,94226.0,0.08864194]
[1734989081548,0.053129,94238.0,94229.0,0.3608]
[1734989081748,0.053129,94237.0,94226.0,0.08864194]
[1734989081956,0.053129,94237.0,94228.0,0.3608]
[1734989082357,0.05313,94235.0,94228.0,0.3608]
[1734989082557,0.053131,94234.0,94226.0,0.08864194]
[1734989082752,0.053134,94228.0,94226.0,0.08864194]
[1734989082956,0.053134,94228.0,94226.0,0.001]
[1734989083357,0.3492,94227.0,94226.0,0.001]
[1734989084451,0.3492,94227.0,94219.0,0.03422092]
[1734989084662,0.053138,94220.0,94213.0,0.053142]
[1734989085358,0.408334,94227.0,94226.0,0.001]
[1734989085653,0.053144,94211.0,94210.0,0.03394422]
[1734989085958,0.053144,94211.0,94208.0,0.053145]
[1734989086554,0.053144,94211.0,94209.0,0.053144]
[1734989086750,0.05314,94218.0,94208.0,0.03334524]
[1734989086954,0.001,94220.0,94219.0,0.053139]
[1734989087759,0.232335,94227.0,94219.0,0.053139]
[1734989087961,0.229335,94227.0,94220.0,0.3608]
[1734989088765,0.053135,94226.0,94220.0,0.3608]
[1734989089260,0.053137,94223.0,94220.0,0.3608]
[1734989089460,0.05313,94235.0,94219.0,0.003]
[1734989089660,0.053137,94223.0,94219.0,0.002]
[1734989089855,0.053138,94221.0,94219.0,0.002]
[1734989090356,0.1765,94220.0,94219.0,0.002]
[1734989090558,0.1765,94220.0,94207.0,0.3608]
[1734989090559,0.053143,94213.0,94207.0,0.413945]
[1734989090760,0.053144,94210.0,94207.0,0.413945]
[1734989091661,0.053144,94210.0,94207.0,0.44869888]
[1734989091867,0.053144,94210.0,94207.0,0.45069888]
[1734989092166,0.053144,94210.0,94207.0,0.45169888]
[1734989092562,0.053144,94210.0,94207.0,0.08989888]
[1734989094967,0.053141,94215.0,94207.0,0.08989888]
[1734989095266,0.053141,94215.0,94208.0,0.053145]
[1734989095569,0.053142,94214.0,94208.0,0.053145]
[1734989095868,0.053143,94213.0,94207.0,0.03675388]
[1734989096270,0.3608,94219.0,94207.0,0.03675388]
[1734989096459,0.053143,94212.0,94207.0,0.03675388]
[1734989096766,0.3608,94219.0,94207.0,0.03675388]
[1734989096970,0.053144,94210.0,94207.0,0.03675388]
[1734989097565,0.053145,94208.0,94207.0,0.03675388]
[1734989098665,0.3608,94219.0,94207.0,0.03675388]
[1734989098871,0.053142,94214.0,94207.0,0.03575388]
[1734989099061,0.15827708,94214.0,94207.0,0.03675388]
[1734989099260,0.053144,94210.0,94207.0,0.03675388]
[1734989099568,0.053145,94209.0,94207.0,0.03675388]
[1734989100667,0.053153,94194.0,94193.0,0.0012]
[1734989100863,0.3608,94211.0,94193.0,0.0012]
[1734989101169,0.3608,94211.0,94207.0,0.001]
[1734989101360,0.053145,94208.0,94207.0,0.001]
[1734989101564,0.3608,94211.0,94207.0,0.001]
[1734989101760,0.413944,94211.0,94207.0,0.001]
[1734989101961,0.3608,94211.0,94201.0,0.1809]
[1734989102166,0.3608,94211.0,94199.0,0.3608]
[1734989102363,0.05315,94201.0,94199.0,0.39555832]
[1734989102772,0.05315,94201.0,94199.0,0.03475832]
[1734989102773,0.41395,94201.0,94199.0,0.03475832]
[1734989102959,0.053157,94187.0,94180.0,0.08864194]
[1734989103170,0.053159,94183.0,94179.0,0.60901706]
[1734989103371,0.3608,94190.0,94179.0,0.60901706]
[1734989103673,0.05316,94183.0,94180.0,0.08864194]
[1734989103872,0.05316,94183.0,94179.0,0.60901706]
[1734989104073,0.3608,94190.0,94179.0,0.6422199]
[1734989104376,0.3608,94190.0,94180.0,0.08864194]
[1734989104377,0.053157,94187.0,94180.0,0.08864194]
[1734989104572,0.053157,94187.0,94182.0,0.05316]
[1734989104878,0.053159,94184.0,94180.0,0.08864194]
[1734989105069,0.053161,94180.0,94179.0,0.39700284]
[1734989105571,0.053161,94180.0,94179.0,0.003]
[1734989105771,0.3608,94182.0,94165.0,0.3608]
[1734989106175,0.3608,94182.0,94165.0,0.2868]
[1734989106364,0.053169,94167.0,94165.0,0.2868]
[1734989106766,0.053169,94167.0,94165.0,0.32860138]
[1734989107072,0.3608,94166.0,94165.0,0.04180138]
[1734989107274,0.053174,94157.0,94152.0,0.223277]
[1734989107473,0.053174,94157.0,94156.0,0.40435853]
[1734989107778,0.3608,94166.0,94156.0,0.04355853]
[1734989108070,0.3608,94166.0,94153.0,0.053176]
[1734989108466,0.053173,94158.0,94150.0,0.08864194]
[1734989108671,0.05317,94165.0,94150.0,0.08864194]
[1734989108870,0.3608,94166.0,94156.0,0.002]
[1734989109065,0.053173,94159.0,94156.0,0.002]
[1734989109268,0.3608,94166.0,94156.0,0.002]
[1734989109475,0.413969,94166.0,94159.0,0.053173]
[1734989109664,0.05317,94165.0,94156.0,0.002]
[1734989109870,0.053166,94172.0,94156.0,0.002]
[1734989110080,0.3608,94174.0,94170.0,0.053166]
[1734989110272,0.3608,94174.0,94169.0,0.053167]
[1734989110472,0.3608,94174.0,94171.0,0.053166]
[1734989110674,0.3608,94187.0,94170.0,0.148366]
[1734989110675,0.15919043,94184.0,94170.0,0.148366]
[1734989110872,0.15919043,94184.0,94178.0,0.053162]
[1734989111074,0.15919043,94184.0,94180.0,0.053161]
[1734989111776,0.413957,94187.0,94180.0,0.053161]
[1734989112171,0.014,94184.0,94183.0,0.3608]
[1734989112785,0.3608,94195.0,94193.0,0.053153]
[1734989113079,0.3608,94195.0,94183.0,0.3608]
[1734989113080,0.15919043,94203.0,94186.0,0.053157]
[1734989113276,0.15919043,94203.0,94191.0,0.053155]
[1734989113477,0.05315,94201.0,94191.0,0.053155]
[1734989113678,0.05315,94201.0,94185.0,0.08864194]
[1734989113880,0.15919043,94203.0,94186.0,0.1756]
[1734989114074,0.053157,94187.0,94180.0,0.08964194]
[1734989114274,0.053157,94188.0,94183.0,0.001]
[1734989114483,0.3608,94200.0,94183.0,0.001]
[1734989114681,0.3608,94200.0,94191.0,0.001]
[1734989114882,0.413954,94192.0,94191.0,0.001]
[1734989115383,0.413954,94192.0,94178.0,0.14083292]
[1734989115576,0.053151,94198.0,94189.0,0.053156]
[1734989115779,0.12686472,94193.0,94190.0,0.14179694]
[1734989115975,0.12686472,94193.0,94183.0,0.08864194]
[1734989116285,0.002,94192.0,94185.0,0.053158]
[1734989116980,0.003,94192.0,94185.0,0.053158]
[1734989117479,0.001,94192.0,94186.0,0.053158]
[1734989117687,0.053153,94194.0,94186.0,0.053158]
[1734989117872,0.053153,94194.0,94192.0,0.3608]
[1734989119390,0.053153,94194.0,94192.0,0.3618]
[1734989119578,0.053153,94194.0,94192.0,0.001]
[1734989120585,0.3608,94198.0,94184.0,0.2898]
[1734989120885,0.053153,94194.0,94184.0,0.2898]
[1734989121074,0.053153,94194.0,94192.0,0.001]
[1734989121477,0.3608,94198.0,94193.0,0.053153]
[1734989121877,0.413951,94198.0,94193.0,0.053153]
[1734989122478,0.3608,94198.0,94196.0,0.053152]
[1734989123285,0.3608,94198.0,94197.0,0.1744]
[1734989123478,0.12697113,94205.0,94197.0,0.1744]
[1734989123786,0.06357278,94205.0,94197.0,0.1744]
[1734989124187,0.06357278,94205.0,94200.0,0.3608]
[1734989124381,0.55238852,94218.0,94200.0,0.3608]
[1734989124382,0.12184332,94217.0,94200.0,0.3608]
[1734989124586,0.12184332,94217.0,94213.0,0.053142]
[1734989124787,0.12184332,94217.0,94202.0,0.08864194]
[1734989124987,0.12184332,94217.0,94215.0,0.053141]
[1734989125283,0.12184332,94217.0,94197.0,0.1744]
[1734989125583,0.3608,94218.0,94181.0,0.3608]
[1734989125584,0.053154,94192.0,94182.0,0.35558228]
[1734989125785,0.053154,94192.0,94186.0,0.053157]
[1734989126091,0.3608,94198.0,94182.0,0.27672422]
[1734989126275,0.053159,94184.0,94182.0,0.18808228]
[1734989126673,0.3608,94190.0,94181.0,0.05354066]
[1734989126674,0.05316,94182.0,94181.0,0.05354066]
[1734989126871,0.41396,94182.0,94181.0,0.00116]
[1734989127181,0.41396,94182.0,94168.0,0.053168]
[1734989127182,0.053162,94178.0,94168.0,0.053168]
[1734989127383,0.3608,94182.0,94168.0,0.053168]
[1734989127585,0.053166,94171.0,94162.0,0.413971]
[1734989127789,0.053167,94170.0,94162.0,0.413971]
[1734989128785,0.3608,94173.0,94162.0,0.3638]
[1734989128981,0.05317,94164.0,94162.0,0.3638]
[1734989129388,0.3608,94163.0,94162.0,0.05680902]
[1734989130093,0.3608,94163.0,94162.0,0.05880902]
[1734989130474,0.3608,94163.0,94150.0,0.08864194]
[1734989130674,0.3608,94153.0,94144.0,0.1719]
[1734989130880,0.3608,94153.0,94136.0,0.3608]
[1734989131083,0.3608,94145.0,94136.0,0.3608]
[1734989131378,0.3608,94145.0,94129.0,0.18688228]
[1734989131379,0.413985,94137.0,94129.0,0.05393128]
[1734989131679,0.413985,94137.0,94113.0,0.00116]
[1734989131680,0.053198,94114.0,94113.0,0.00116]
[1734989131879,0.053198,94114.0,94111.0,0.31103042]
[1734989131880,0.053199,94113.0,94111.0,0.31103042]
[1734989132592,0.77535801,94114.0,94111.0,0.31103042]
[1734989132786,0.053199,94113.0,94111.0,0.31103042]
[1734989133086,0.053199,94113.0,94104.0,0.0519895]
[1734989133087,0.72216001,94114.0,94110.0,0.0532]
[1734989133283,0.3608,94114.0,94113.0,0.053199]
[1734989133488,0.3608,94121.0,94118.0,0.053196]
[1734989135395,0.053195,94120.0,94118.0,0.002]
[1734989135690,0.053197,94117.0,94101.0,0.0931]
[1734989135899,0.3608,94104.0,94103.0,0.053205]
[1734989136686,0.3608,94104.0,94101.0,0.1454733]
[1734989136891,0.3608,94102.0,94101.0,0.1454733]
[1734989137798,0.3608,94102.0,94101.0,0.1494733]
[1734989138296,0.3608,94102.0,94101.0,0.004]
[1734989138689,0.053206,94101.0,94095.0,0.05423674]
[1734989139094,0.3608,94102.0,94101.0,0.001]
[1734989139300,0.414005,94102.0,94101.0,0.001]
[1734989139790,0.414005,94102.0,94081.0,0.1677]
[1734989140492,0.053214,94087.0,94081.0,0.1677]
[1734989140682,0.3608,94082.0,94081.0,0.0937]
[1734989141083,0.3608,94082.0,94081.0,0.14683465]
[1734989141294,0.3608,94091.0,94090.0,0.053212]
[1734989141489,0.3668,94102.0,94099.0,0.053207]
[1734989141697,0.36736001,94102.0,94099.0,0.053207]
[1734989141891,0.3608,94102.0,94099.0,0.053207]
[1734989142197,0.3608,94102.0,94090.0,0.49406301]
[1734989142399,0.3608,94102.0,94100.0,0.053206]
[1734989142597,0.3608,94102.0,94090.0,0.49406301]
[1734989142598,0.3608,94119.0,94101.0,0.3608]
[1734989142792,0.3608,94136.0,94118.0,0.3608]
[1734989143000,0.3608,94136.0,94128.0,0.05319]
[1734989144701,0.3608,94136.0,94128.0,0.05619]
[1734989145096,0.3608,94136.0,94128.0,0.05319]
[1734989145602,0.053186,94137.0,94129.0,0.3608]
[1734989145794,0.053182,94144.0,94130.0,0.053189]
[1734989146201,0.3608,94147.0,94130.0,0.053189]
[1734989146202,0.053182,94143.0,94130.0,0.053189]
[1734989146499,0.3608,94147.0,94144.0,0.053181]
[1734989146800,0.3608,94147.0,94143.0,0.053182]
[1734989147304,0.13326301,94180.0,94143.0,0.053182]
[1734989147305,0.002,94144.0,94143.0,0.053182]
[1734989147897,0.001,94144.0,94143.0,0.053182]
[1734989148392,0.001,94144.0,94143.0,0.10694622]
[1734989148595,0.003,94144.0,94143.0,0.053182]
[1734989149398,0.004,94144.0,94143.0,0.053182]
[1734989150000,0.004,94144.0,94143.0,0.10604083]
[1734989150502,0.053165,94173.0,94143.0,0.10604083]
[1734989150801,0.3608,94176.0,94171.0,0.053166]
[1734989151000,0.053159,94184.0,94171.0,0.053166]
[1734989151499,0.053159,94184.0,94160.0,0.49406301]
[1734989151500,0.053159,94184.0,94170.0,0.13326301]
[1734989151692,0.3608,94185.0,94176.0,0.053163]
[1734989151896,0.3608,94185.0,94170.0,0.13326301]
[1734989152097,0.3608,94185.0,94168.0,0.415128]
[1734989152298,0.3608,94185.0,94169.0,0.053167]
[1734989152500,0.053161,94180.0,94168.0,0.3608]
[1734989152804,0.053161,94180.0,94170.0,0.001]
[1734989153496,0.3608,94185.0,94184.0,0.053159]
[1734989153703,0.19102851,94209.0,94208.0,0.053145]
[1734989153899,0.3608,94227.0,94217.0,0.05314]
[1734989154098,0.3608,94227.0,94206.0,0.3608]
[1734989154099,0.3608,94227.0,94219.0,0.053139]
[1734989154304,0.3608,94227.0,94218.0,0.3608]
[1734989154305,0.25294989,94229.0,94218.0,0.3608]
[1734989154504,0.25294989,94229.0,94228.0,0.053134]
[1734989155110,0.053134,94228.0,94217.0,0.49406301]
[1734989155312,0.053134,94228.0,94219.0,0.003]
[1734989155606,0.3608,94237.0,94219.0,0.003]
[1734989155607,0.413929,94237.0,94219.0,0.003]
[1734989155911,0.001,94229.0,94227.0,0.13326301]
[1734989156107,0.001,94229.0,94228.0,0.3608]
[1734989156296,0.001,94229.0,94227.0,0.053134]
[1734989156499,0.001,94229.0,94225.0,0.3608]
[1734989157507,0.001,94229.0,94219.0,0.13326301]
[1734989157711,0.001,94229.0,94222.0,0.053137]
[1734989158012,0.3608,94237.0,94228.0,0.3608]
[1734989159102,0.3608,94237.0,94233.0,0.053131]
[1734989159601,0.3608,94237.0,94228.0,0.3608]
[1734989160505,0.3608,94237.0,94228.0,0.2868]
[1734989160710,0.3608,94237.0,94217.0,0.00136]
[1734989160711,0.3608,94229.0,94217.0,0.00136]
[1734989160912,0.3608,94229.0,94224.0,0.053136]
[1734989162105,0.3608,94229.0,94224.0,0.054136]
[1734989162305,0.3608,94229.0,94224.0,0.001]
[1734989162513,0.053136,94225.0,94224.0,0.001]
[1734989162716,0.053136,94225.0,94217.0,0.05258593]
[1734989162911,0.053136,94225.0,94224.0,0.001]
[1734989164305,0.413936,94225.0,94224.0,0.001]
[1734989164509,0.05314,94218.0,94217.0,0.004]
[1734989164812,0.3608,94218.0,94195.0,0.053153]
[1734989165015,0.3608,94218.0,94176.0,0.3608]
[1734989165016,0.053153,94195.0,94181.0,0.05316]
[1734989165214,0.053153,94195.0,94183.0,0.053159]
[1734989166014,0.053153,94195.0,94184.0,0.053158]
[1734989166314,0.001,94195.0,94187.0,0.05962581]
[1734989166509,0.001,94195.0,94188.0,0.053156]
[1734989167112,0.001,94195.0,94187.0,0.05962581]
[1734989167709,0.3608,94198.0,94187.0,0.05362581]
[1734989167907,0.3608,94198.0,94187.0,0.05662581]
[1734989168107,0.053156,94189.0,94187.0,0.003]
[1734989168312,0.053156,94189.0,94188.0,0.004]
[1734989168914,0.053156,94189.0,94187.0,0.007]
[1734989170914,0.053156,94189.0,94188.0,0.004]
[1734989171520,0.053156,94189.0,94187.0,0.003]
[1734989172126,0.3608,94190.0,94187.0,0.003]
[1734989172713,0.053156,94189.0,94187.0,0.003]
[1734989172919,0.053156,94189.0,94187.0,0.056157]
[1734989173121,0.053156,94189.0,94188.0,0.053157]
[1734989173122,0.003,94189.0,94188.0,0.053157]
[1734989174129,0.003,94189.0,94188.0,0.10563838]
[1734989174725,0.003,94189.0,94188.0,0.10963838]
[1734989174926,0.001,94189.0,94188.0,0.10963838]
[1734989175121,0.3608,94190.0,94188.0,0.10963838]
[1734989175537,0.3608,94190.0,94188.0,0.03563838]
[1734989175826,0.001,94189.0,94188.0,0.423957]
[1734989176029,0.053145,94210.0,94202.0,0.053149]
[1734989176327,0.053145,94210.0,94203.0,0.053148]
[1734989176830,0.053145,94209.0,94197.0,0.053151]
[1734989177016,0.3608,94211.0,94190.0,0.13326301]
[1734989177529,0.3608,94211.0,94188.0,0.42147933]
[1734989177530,0.3608,94211.0,94203.0,0.002]
[1734989177728,0.3608,94211.0,94203.0,0.055148]
[1734989178029,0.3608,94211.0,94200.0,0.13326301]
[1734989178229,0.00056001,94219.0,94208.0,0.053145]
[1734989178422,0.3608,94233.0,94216.0,0.3608]
[1734989178624,0.3608,94244.0,94216.0,0.3608]
[1734989178625,0.09471195,94235.0,94220.0,0.13326301]
[1734989178824,0.053132,94232.0,94221.0,0.053138]
[1734989179333,0.3608,94227.0,94221.0,0.053138]
[1734989180124,0.3608,94227.0,94216.0,0.3608]
[1734989180327,0.053141,94216.0,94204.0,0.053147]
[1734989180520,0.053141,94216.0,94205.0,0.01219854]
[1734989180734,0.053141,94216.0,94206.0,0.01219854]
[1734989181032,0.053141,94216.0,94208.0,0.053145]
[1734989181524,0.63,94226.0,94203.0,0.05403828]
[1734989181525,0.3608,94215.0,94203.0,0.05403828]
[1734989181725,0.3608,94215.0,94210.0,0.053144]
[1734989182233,0.3608,94215.0,94213.0,0.053142]
[1734989182536,0.001,94227.0,94226.0,0.053135]
[1734989183230,0.001,94227.0,94224.0,0.3608]
[1734989183428,0.001,94227.0,94217.0,0.13326301]
[1734989183429,0.001,94227.0,94226.0,0.053135]
[1734989183630,0.09471195,94231.0,94222.0,0.3608]
[1734989183835,0.09471195,94231.0,94229.0,0.053133]
[1734989184836,0.3608,94234.0,94229.0,0.001]
[1734989185436,0.3608,94234.0,94231.0,0.053132]
[1734989185631,0.3608,94234.0,94222.0,0.39331359]
[1734989185931,0.09471195,94252.0,94232.0,0.3608]
[1734989186134,0.09471195,94252.0,94240.0,0.3608]
[1734989186331,0.09471195,94252.0,94250.0,0.053121]
[1734989186729,0.14783295,94252.0,94244.0,0.053125]
[1734989187332,0.053122,94251.0,94241.0,0.3553]
[1734989187532,0.053122,94251.0,94250.0,0.001]
[1734989187928,0.053122,94251.0,94241.0,0.3553]
[1734989188124,0.053122,94251.0,94241.0,0.40935142]
[1734989188632,0.004,94252.0,94250.0,0.001]
[1734989188837,0.053121,94251.0,94250.0,0.001]
[1734989189430,0.054121,94251.0,94250.0,0.001]
[1734989189630,0.684121,94251.0,94250.0,0.001]
[1734989190136,0.633,94251.0,94241.0,0.05405142]
[1734989190338,0.3608,94243.0,94241.0,0.053127]
[1734989190636,0.057122,94251.0,94230.0,0.13326301]
[1734989190637,0.053125,94245.0,94242.0,0.053126]
[1734989190839,0.004,94251.0,94250.0,0.001]
[1734989191428,0.003,94251.0,94240.0,0.13326301]